bitfinex/quotes_ETHUSD_20241116
["timestamp","ask_amount","ask_price","bid_price","bid_amount"]
[1731781223997,6.30369,3172.8,3172.1,3.15248]
[1731781224208,3.15181,3172.8,3172.2,0.37458291]
[1731781224429,3.15181,3172.8,3172.2,3.52693291]
[1731781224748,4.58180678,3173.0,3172.2,3.52693291]
[1731781224749,3.15159,3173.0,3172.3,3.15228]
[1731781225273,3.15117,3173.5,3172.6,3.15189]
[1731781225563,3.15132,3173.3,3172.4,0.06304173]
[1731781225719,3.15132,3173.3,3172.6,3.15194]
[1731781226337,3.15101,3173.6,3173.0,3.15156]
[1731781226721,0.03031396,3173.5,3173.0,3.15156]
[1731781228767,3.18147396,3173.5,3172.8,3.15179]
[1731781229205,3.18147396,3173.5,3172.8,3.15172]
[1731781229715,3.15123,3173.4,3172.8,3.15172]
[1731781229876,3.1515,3173.1,3172.4,3.15215]
[1731781230084,3.18168283,3173.3,3172.6,3.15191]
[1731781230281,0.03025737,3173.0,3172.7,3.0]
[1731781230612,0.03023221,3172.9,3172.5,3.0]
[1731781230777,3.15152,3173.1,3172.5,3.0]
[1731781231095,3.15142,3173.2,3172.5,6.15206]
[1731781231096,0.03025737,3173.0,3172.5,6.15206]
[1731781231295,0.03025737,3173.0,3172.5,3.0]
[1731781231463,3.15156,3173.1,3172.5,3.0]
[1731781231805,0.03025737,3173.0,3172.5,6.152]
[1731781232166,0.03025737,3173.0,3172.5,3.0]
[1731781232563,3.1517,3172.9,3172.2,3.15238]
[1731781232876,3.18212504,3172.8,3172.2,3.15233]
[1731781233090,3.15217,3172.5,3171.8,3.15274]
[1731781233608,3.15154,3173.1,3171.8,3.15274]
[1731781233609,3.18241439,3172.4,3171.8,3.15274]
[1731781234110,2.78241439,3172.4,3171.8,3.15274]
[1731781234544,2.78241439,3172.4,3171.9,3.15267]
[1731781234747,0.03022439,3172.4,3172.0,6.15256]
[1731781235040,3.15182,3172.8,3172.0,3.0]
[1731781235242,3.1524,3172.2,3171.9,3.0]
[1731781235528,0.03013769,3172.1,3171.6,3.15295]
[1731781235731,3.18261769,3172.1,3171.4,3.15315]
[1731781236044,0.03011252,3172.0,3171.8,3.15277]
[1731781236336,3.15202,3172.6,3171.9,3.15258]
[1731781237185,3.15219,3172.4,3171.7,6.1528]
[1731781237494,3.15231,3172.3,3171.8,3.15278]
[1731781237932,3.15231,3172.3,3171.6,3.0]
[1731781238147,3.15231,3172.3,3171.6,6.1529]
[1731781238344,3.15242,3172.2,3171.6,3.0]
[1731781239046,3.15242,3172.2,3171.6,6.15297]
[1731781239232,3.15242,3172.2,3171.6,3.0]
[1731781240567,3.15253,3172.1,3171.6,3.0]
[1731781240898,3.15264,3172.0,3171.5,3.0]
[1731781241143,3.15242,3172.2,3171.5,6.15306]
[1731781241339,3.1525,3172.1,3171.5,6.15306]
[1731781241717,0.03000268,3172.0,3171.5,6.15306]
[1731781243509,3.18267268,3172.0,3171.4,3.0]
[1731781243958,3.18267268,3172.0,3171.5,3.0]
[1731781244658,3.1528,3171.8,3171.2,6.15336]
[1731781244833,0.02992716,3171.7,3171.3,3.15327]
[1731781245039,3.15269,3171.9,3171.4,3.0]
[1731781245246,0.02994623,3171.8,3171.4,3.0]
[1731781247653,3.18279623,3171.8,3171.1,6.1534]
[1731781247820,3.18279623,3171.8,3171.1,3.0]
[1731781248023,3.18279623,3171.8,3171.3,3.0]
[1731781248615,3.15289,3171.7,3171.1,3.0]
[1731781248842,0.02986331,3171.6,3171.1,2.99383832]
[1731781249117,0.02986331,3171.6,3171.2,3.15336]
[1731781249606,3.15289,3171.7,3171.2,3.15336]
[1731781249802,0.0298511,3171.6,3171.2,3.15336]
[1731781250070,0.0298511,3171.6,3170.8,3.64713578]
[1731781250204,3.15328,3171.3,3170.8,0.49343578]
[1731781250401,3.15339,3171.2,3170.8,0.49343578]
[1731781250662,3.18314038,3171.2,3170.6,3.21703672]
[1731781250803,3.18314038,3171.2,3170.6,3.21697672]
[1731781251207,3.15363,3171.0,3170.4,3.21716097]
[1731781251432,0.02865406,3170.9,3170.4,3.21716097]
[1731781251955,0.02865406,3170.9,3170.5,3.15405]
[1731781252156,0.02865406,3170.9,3170.6,0.06307231]
[1731781252449,0.02858612,3170.8,3170.6,3.06307231]
[1731781252653,3.15348,3171.1,3170.6,3.06307231]
[1731781252813,0.0286365,3171.0,3170.6,3.06307231]
[1731781253215,0.0286365,3171.0,3170.6,0.06307231]
[1731781255773,0.0286365,3171.0,3170.6,0.06307231]
[1731781256575,0.0286365,3171.0,3170.6,3.21703231]
[1731781256752,0.0286365,3171.0,3170.7,3.0]
[1731781256956,0.0286365,3171.0,3170.6,3.06307231]
[1731781257143,3.15329,3171.3,3170.6,3.06307231]
[1731781257144,3.15338,3171.2,3170.6,3.06307231]
[1731781257345,0.02858485,3170.9,3170.6,3.06307231]
[1731781257545,3.15338,3171.2,3170.6,6.21703231]
[1731781258028,0.02864744,3171.1,3170.6,6.21703231]
[1731781258826,0.02864744,3171.1,3170.6,3.06307231]
[1731781259061,3.18213744,3171.1,3170.6,0.06307231]
[1731781259361,0.02864744,3171.1,3170.6,0.06307231]
[1731781259549,3.15359,3171.0,3170.6,0.06307231]
[1731781259940,0.02852991,3170.9,3170.6,0.06307231]
[1731781260164,0.02852991,3170.9,3170.6,3.06307231]
[1731781260728,3.15278,3171.8,3170.6,3.06307231]
[1731781260729,3.15349,3171.1,3170.6,3.06307231]
[1731781261176,0.02855509,3171.0,3170.6,3.06307231]
[1731781262046,0.02855509,3171.0,3170.6,3.0]
[1731781263826,0.02855509,3171.0,3170.6,3.06307313]
[1731781264678,0.02855509,3171.0,3170.6,6.21701313]
[1731781264847,3.15339,3171.2,3170.6,6.21701313]
[1731781265048,0.02858028,3171.1,3170.6,6.21701313]
[1731781265874,3.15349,3171.1,3170.6,6.21701313]
[1731781266076,0.02855509,3171.0,3170.6,6.21701313]
[1731781266447,0.02855509,3171.0,3170.8,1.43130125]
[1731781266645,3.1532,3171.4,3170.8,4.64811439]
[1731781266850,3.1532,3171.4,3170.8,4.64810828]
[1731781266851,0.02860825,3171.3,3170.8,4.64810828]
[1731781267550,3.18188825,3171.3,3170.8,4.64810828]
[1731781267878,3.18188825,3171.3,3170.8,1.49436828]
[1731781268792,3.15339,3171.2,3170.8,0.06306703]
[1731781269194,0.02857315,3171.1,3170.7,0.06306918]
[1731781270692,0.02857315,3171.1,3170.7,3.21692918]
[1731781272014,0.02857315,3171.1,3170.7,0.06306918]
[1731781272152,0.02857315,3171.1,3170.7,3.06306918]
[1731781272355,0.02857315,3171.1,3170.7,6.21685918]
[1731781272753,3.15322,3171.4,3170.7,6.21685918]
[1731781273062,3.15341,3171.2,3170.7,3.06306918]
[1731781273262,0.03453456,3171.1,3170.7,3.06306918]
[1731781273863,0.03453456,3171.1,3170.8,3.15377]
[1731781274060,3.15322,3171.4,3170.8,3.15377]
[1731781274261,0.03459752,3171.3,3170.8,3.15377]
[1731781274861,3.18789752,3171.3,3170.7,6.15385]
[1731781276068,3.18789752,3171.3,3170.7,9.30765]
[1731781277112,3.18789752,3171.3,3170.7,3.0]
[1731781277113,3.15341,3171.2,3170.7,3.0]
[1731781277702,0.03456256,3171.1,3170.6,3.0]
[1731781278108,0.03456256,3171.1,3170.6,6.15396]
[1731781278323,3.18806256,3171.1,3170.6,3.0]
[1731781279465,0.03456256,3171.1,3170.6,6.15397]
[1731781279621,6.30666,3171.3,3170.6,6.15397]
[1731781279832,0.03459404,3171.2,3170.6,3.0]
[1731781280020,3.15348,3171.1,3170.6,6.15395]
[1731781280219,0.03453107,3171.0,3170.6,6.15395]
[1731781280629,0.03453107,3171.0,3170.6,3.0]
[1731781281347,0.03453107,3171.0,3170.4,1.43130125]
[1731781281348,0.03453107,3171.0,3170.4,3.0]
[1731781281532,3.15375,3170.9,3170.4,6.15417]
[1731781281980,0.0344681,3170.8,3170.4,6.15417]
[1731781284848,6.30708,3171.1,3170.4,6.15417]
[1731781285052,3.1536,3171.0,3170.4,6.15417]
[1731781285263,0.03449959,3170.9,3170.4,6.15417]
[1731781286050,0.03449959,3170.9,3170.5,3.154]
[1731781286251,3.15348,3171.1,3170.5,3.154]
[1731781286448,3.18812107,3171.0,3170.6,3.0]
[1731781286612,0.03453107,3171.0,3170.6,3.0]
[1731781286982,3.18813107,3171.0,3170.3,6.15419]
[1731781287151,3.18813107,3171.0,3170.5,3.0]
[1731781287351,3.15367,3170.9,3170.5,3.0]
[1731781287743,0.03760156,3170.8,3170.5,3.0]
[1731781288783,0.03760156,3170.8,3170.5,6.21704344]
[1731781289156,3.15342,3171.2,3170.5,6.21704344]
[1731781289372,0.03756721,3170.7,3170.5,6.21704344]
[1731781289572,3.15355,3171.1,3170.5,6.21704344]
[1731781289939,0.03767026,3171.0,3170.5,6.21704344]
[1731781290717,0.03767026,3171.0,3170.5,6.15397]
[1731781290914,3.19131026,3171.0,3170.4,3.0]
[1731781291206,3.19131026,3171.0,3170.4,6.15416]
[1731781291701,3.19131026,3171.0,3170.4,6.15415]
[1731781295360,3.15371,3170.9,3170.4,3.0]
[1731781295559,3.15371,3170.9,3170.3,6.15419]
[1731781295767,0.03755993,3170.8,3170.3,6.15419]
[1731781297401,0.03755993,3170.8,3170.4,3.15413]
[1731781297611,0.03755993,3170.8,3170.5,3.0]
[1731781297911,0.03752557,3170.7,3170.5,3.0]
[1731781298115,3.15364,3171.0,3170.5,3.0]
[1731781298324,0.03759428,3170.9,3170.5,3.0]
[1731781298731,3.15364,3171.0,3170.5,3.0]
[1731781298927,8.74,3171.9,3170.5,6.15406]
[1731781298928,3.15354,3171.1,3170.5,6.15406]
[1731781300639,3.15358,3171.0,3170.5,6.15406]
[1731781300929,3.15354,3171.1,3170.5,6.15406]
[1731781301084,3.15369,3170.9,3170.4,3.0]
[1731781301596,6.30709,3171.1,3170.4,6.15416]
[1731781302126,3.15354,3171.1,3170.4,6.15416]
[1731781303492,3.15354,3171.1,3170.6,3.0]
[1731781307627,3.15354,3171.1,3170.6,3.06307318]
[1731781309896,3.15354,3171.1,3170.7,3.0]
[1731781310251,3.15354,3171.1,3170.6,0.06307318]
[1731781310445,3.15354,3171.1,3170.5,0.06307314]
[1731781311244,3.15354,3171.1,3170.5,3.21711314]
[1731781311605,3.15354,3171.1,3170.6,3.0]
[1731781313337,3.15358,3171.0,3170.6,3.0]
[1731781313633,3.15358,3171.0,3170.3,3.15427]
[1731781313634,3.15358,3171.0,3170.4,3.0]
[1731781314691,3.15331,3171.3,3170.4,3.0]
[1731781314913,3.468801,3171.2,3170.5,3.154]
[1731781315236,3.468801,3171.2,3170.6,3.0]
[1731781315534,3.1535,3171.1,3170.6,3.0]
[1731781316886,3.15367,3171.0,3170.6,3.0]
[1731781317092,3.15347,3171.1,3170.4,3.0]
[1731781317294,3.64348022,3171.1,3170.4,6.15415]
[1731781318236,3.15358,3171.0,3170.4,6.15415]
[1731781321656,3.15341,3171.2,3170.4,6.15415]
[1731781321657,3.15349,3171.1,3170.4,6.15415]
[1731781321827,3.15349,3171.1,3170.6,3.0]
[1731781322722,3.15325,3171.4,3170.7,0.06307362]
[1731781322914,3.15325,3171.4,3170.8,3.15376]
[1731781324172,6.30652,3171.4,3170.8,3.15376]
[1731781324455,3.15339,3171.2,3170.6,3.0]
[1731781324678,3.1535,3171.1,3170.6,3.0]
[1731781324959,3.15342,3171.2,3170.6,6.15395]
[1731781325251,3.15342,3171.2,3170.6,3.0]
[1731781325555,3.15342,3171.2,3170.7,0.06306951]
[1731781326148,3.15342,3171.2,3170.7,1.49437076]
[1731781326334,3.15342,3171.2,3170.7,0.06306951]
[1731781329264,6.30688,3171.2,3170.7,0.06306951]
[1731781329614,3.15342,3171.2,3170.7,0.06306951]
[1731781329954,3.15346,3171.2,3170.7,0.06306951]
[1731781330552,3.15346,3171.2,3170.7,3.06306951]
[1731781332728,3.15346,3171.2,3170.7,3.0]
[1731781333329,3.15346,3171.2,3170.5,4.43130125]
[1731781333330,3.15364,3171.0,3170.5,4.43130125]
[1731781333550,3.15346,3171.2,3170.5,4.43130125]
[1731781333840,3.15346,3171.2,3170.7,3.0]
[1731781334581,3.15354,3171.1,3170.5,7.58537125]
[1731781334723,3.15354,3171.1,3170.5,6.15407]
[1731781334926,3.15346,3171.2,3170.6,3.15397]
[1731781335125,3.15346,3171.2,3170.7,3.06306968]
[1731781337158,3.15346,3171.2,3170.7,3.0]
[1731781337352,3.15349,3171.1,3170.7,3.0]
[1731781337993,3.15349,3171.1,3170.5,4.43130125]
[1731781338193,3.15349,3171.1,3170.5,7.58536125]
[1731781339771,3.15349,3171.1,3170.5,6.15406]
[1731781339986,3.15349,3171.1,3170.5,7.58536125]
[1731781340368,3.15349,3171.1,3170.6,0.06306975]
[1731781340797,3.15349,3171.1,3170.5,7.58536125]
[1731781341105,3.15364,3171.0,3170.5,3.0]
[1731781341793,3.15364,3171.0,3170.5,3.06307355]
[1731781342805,4.58434125,3171.6,3170.4,1.74630125]
[1731781343006,4.58434125,3171.6,3170.5,0.06307355]
[1731781343007,3.15361,3171.0,3170.5,0.06307355]
[1731781343312,3.15361,3171.0,3170.6,0.315]
[1731781345839,3.15361,3171.0,3170.5,3.315]
[1731781350604,3.13225583,3171.0,3170.5,3.315]
[1731781352418,3.15351,3171.1,3170.5,6.46906]
[1731781352785,3.15361,3171.0,3170.5,3.315]
[1731781354132,3.15361,3171.0,3170.5,6.46907]
[1731781354350,3.15361,3171.0,3170.5,0.315]
[1731781354490,3.15361,3171.0,3170.6,3.0]
[1731781356550,3.15342,3171.2,3170.7,3.15386]
[1731781357042,3.1532,3171.4,3170.8,3.15372]
[1731781357205,3.1532,3171.4,3170.7,0.06307407]
[1731781357206,3.15334,3171.3,3170.7,3.06307407]
[1731781358142,3.15334,3171.3,3170.7,6.21689407]
[1731781359260,3.15334,3171.3,3170.7,6.15382]
[1731781359559,3.1532,3171.4,3170.7,3.0]
[1731781359707,3.15338,3171.2,3170.5,3.315]
[1731781360052,3.15338,3171.2,3170.7,3.0]
[1731781361647,3.1532,3171.4,3170.8,3.15371]
[1731781361852,8.74,3172.1,3171.6,3.15294]
[1731781362001,3.15246,3172.2,3171.5,3.15301]
[1731781362198,6.30494,3172.2,3171.5,4.58431125]
[1731781362430,3.15264,3172.0,3171.4,3.21613606]
[1731781362903,3.15264,3172.0,3170.8,1.31421432]
[1731781362904,3.15308,3171.5,3170.8,1.31421432]
[1731781363149,3.15308,3171.5,3170.9,3.0]
[1731781363314,3.15308,3171.5,3170.7,4.58510125]
[1731781363315,3.15331,3171.3,3170.8,3.0]
[1731781366908,3.15331,3171.3,3170.8,3.06306877]
[1731781367115,3.15331,3171.3,3170.8,6.21683877]
[1731781369117,3.15331,3171.3,3170.7,1.43130125]
[1731781370014,3.15338,3171.2,3170.6,3.0]
[1731781370311,3.15331,3171.3,3170.6,3.0]
[1731781370511,3.15348,3171.1,3170.6,3.0]
[1731781372085,3.15348,3171.1,3170.5,3.315]
[1731781372270,3.15348,3171.1,3170.5,0.315]
[1731781372607,3.15366,3171.0,3170.5,0.315]
[1731781373269,3.15369,3170.9,3170.5,0.315]
[1731781374287,3.15364,3171.0,3170.5,0.315]
[1731781379605,3.15368,3170.9,3170.5,0.315]
[1731781379903,3.15364,3171.0,3170.5,0.315]
[1731781380295,3.15374,3170.9,3170.5,0.315]
[1731781381570,3.15374,3170.9,3170.5,3.315]
[1731781382215,3.15374,3170.9,3170.5,0.315]
[1731781382710,3.15395,3170.7,3170.5,0.315]
[1731781383203,3.1537,3170.9,3170.5,0.315]
[1731781383411,3.15384,3170.8,3170.5,0.315]
[1731781383766,3.15388,3170.7,3170.5,0.315]
[1731781384201,3.15357,3171.0,3170.5,0.315]
[1731781384514,3.15357,3171.0,3170.0,3.63348701]
[1731781384515,3.15397,3170.6,3170.1,3.15445]
[1731781384859,3.15397,3170.6,3170.1,4.58575125]
[1731781385166,3.15423,3170.4,3170.0,3.63348701]
[1731781385365,3.15423,3170.4,3170.0,0.63348701]
[1731781385606,1.43130125,3170.7,3169.5,3.0]
[1731781385897,1.43130125,3170.5,3169.7,3.0]
[1731781386093,4.58541125,3170.5,3169.7,3.0]
[1731781386373,3.15428,3170.3,3169.7,3.15477]
[1731781386714,3.15428,3170.3,3169.8,3.0]
[1731781388074,3.15439,3170.2,3169.7,1.43130125]
[1731781388298,3.15428,3170.3,3169.7,1.43130125]
[1731781389225,3.15428,3170.3,3169.7,4.58615125]
[1731781389376,3.15428,3170.3,3169.8,3.0]
[1731781390706,3.15428,3170.3,3169.9,0.23399666]
[1731781391276,3.61262113,3170.5,3169.9,0.23399666]
[1731781391508,3.15437,3170.3,3169.9,0.23399666]
[1731781391812,3.15418,3170.4,3169.9,0.23399666]
[1731781392313,3.15407,3170.5,3170.0,3.0]
[1731781392576,0.01,3171.3,3170.0,3.0]
[1731781392577,0.6434771,3171.5,3170.3,1.43130125]
[1731781392694,3.15305,3171.6,3170.9,4.58489125]
[1731781392895,0.315305,3171.5,3171.0,3.15357]
[1731781393095,0.315305,3171.5,3171.1,3.15347]
[1731781393449,0.315305,3171.5,3171.2,0.23399666]
[1731781393585,0.315305,3171.5,3171.3,0.23399666]
[1731781393789,0.315305,3171.5,3171.4,0.23399666]
[1731781393991,3.15288,3171.7,3171.4,0.23399666]
[1731781394190,3.15375,3170.9,3170.4,0.31199555]
[1731781394389,3.15375,3170.9,3170.5,0.2339487]
[1731781394632,3.15381,3170.8,3170.6,0.2339487]
[1731781394946,3.784526,3170.8,3170.7,0.2339487]
[1731781395537,3.15348,3171.1,3170.7,0.2339487]
[1731781395694,3.15348,3171.1,3170.8,0.2339487]
[1731781395897,3.15348,3171.1,3170.9,0.2339487]
[1731781396207,3.1536,3171.0,3170.4,3.15414]
[1731781396599,3.1536,3171.0,3170.5,0.23397716]
[1731781396926,3.1536,3171.0,3170.6,0.23397716]
[1731781397147,3.1536,3171.0,3170.7,0.23397716]
[1731781397441,3.1533,3171.3,3170.7,0.23397716]
[1731781397601,1.18933,3171.2,3170.8,0.23397716]
[1731781397936,1.18933,3171.2,3170.9,0.23397716]
[1731781398136,1.18933,3171.2,3171.0,0.23397716]
[1731781398341,1.18933,3171.2,3170.5,3.15407]
[1731781398550,3.1533,3171.3,3170.6,0.23405956]
[1731781398744,3.1533,3171.3,3170.7,0.23405956]
[1731781398895,8.74,3171.4,3170.8,0.23405956]
[1731781399205,3.15321,3171.4,3170.9,0.23405956]
[1731781399410,3.15321,3171.4,3171.0,0.23405956]
[1731781399625,3.15321,3171.4,3171.1,0.23405956]
[1731781400068,3.15321,3171.4,3170.8,3.15377]
[1731781400069,3.1531,3171.5,3171.2,0.23405956]
[1731781400441,3.1531,3171.5,3171.3,0.23401118]
[1731781400642,3.1531,3171.5,3170.9,3.15366]
[1731781400643,3.1531,3171.5,3171.4,0.23401118]
[1731781401790,3.15271,3171.9,3171.4,0.23401118]
[1731781401998,3.15271,3171.9,3171.5,0.23401118]
[1731781402144,3.15271,3171.9,3171.6,0.23401118]
[1731781402497,3.15271,3171.9,3171.3,3.1532]
[1731781402698,4.78485813,3172.1,3171.4,3.38704472]
[1731781402862,4.78485813,3172.1,3171.5,0.23387472]
[1731781402863,3.15248,3172.1,3171.5,0.23387472]
[1731781403188,3.15252,3172.1,3171.6,0.23387472]
[1731781403543,3.15252,3172.1,3171.7,0.23387472]
[1731781404094,3.15252,3172.1,3171.8,0.23387472]
[1731781404384,3.1526,3172.0,3171.3,3.1532]
[1731781405851,3.1526,3172.0,3171.4,3.15317]
[1731781407477,3.1526,3172.0,3171.2,3.15335]
[1731781407790,3.15278,3171.8,3171.2,3.15335]
[1731781408260,3.1526,3172.0,3171.1,3.15347]
[1731781408463,6.30525,3172.0,3171.3,3.15326]
[1731781408677,3.1526,3172.0,3171.3,3.15326]
[1731781410603,3.15269,3171.9,3171.3,3.15326]
[1731781418221,3.15279,3171.8,3171.3,3.15326]
[1731781420067,3.15259,3172.0,3171.4,3.15317]
[1731781420540,3.15268,3171.9,3171.3,3.15326]
[1731781422343,3.15281,3171.8,3171.3,3.15326]
[1731781423207,3.15269,3171.9,3171.1,3.15346]
[1731781423552,3.15279,3171.8,3171.3,3.15327]
[1731781423915,3.15252,3172.1,3171.3,3.15327]
[1731781424117,3.15271,3171.9,3171.3,3.15327]
[1731781425557,3.15271,3171.9,3171.4,3.15317]
[1731781426158,3.0,3172.5,3171.6,3.15292]
[1731781426159,3.15232,3172.3,3171.6,3.15292]
[1731781426453,3.15232,3172.3,3171.1,3.15344]
[1731781426454,3.15298,3171.6,3170.9,3.15359]
[1731781426640,3.15252,3172.1,3171.2,3.15329]
[1731781426849,3.15262,3172.0,3171.4,3.15312]
[1731781427022,3.1526,3172.0,3171.4,3.15312]
[1731781427218,3.15199,3172.6,3171.4,3.15312]
[1731781427219,3.15243,3172.2,3171.4,3.15312]
[1731781427530,3.15243,3172.2,3171.6,3.1529]
[1731781428544,3.15236,3172.3,3171.6,3.15294]
[1731781428745,3.15249,3172.1,3171.6,3.15294]
[1731781429122,3.15249,3172.1,3171.5,3.15307]
[1731781431593,3.15236,3172.3,3171.7,3.15286]
[1731781432193,3.15236,3172.3,3171.6,3.15291]
[1731781433350,6.30474,3172.3,3171.6,3.15291]
[1731781433701,3.15245,3172.2,3171.5,3.15305]
[1731781434750,3.15245,3172.2,3171.6,3.0]
[1731781435008,3.15287,3171.8,3171.4,0.06305617]
[1731781435193,3.15305,3171.6,3170.8,3.15368]
[1731781435496,3.15319,3171.4,3170.8,3.15368]
[1731781435848,3.15328,3171.3,3170.6,3.1539]
[1731781436087,3.15339,3171.2,3170.5,3.15407]
[1731781436286,3.15339,3171.2,3170.4,3.0]
[1731781436489,3.15349,3171.1,3170.6,3.0]
[1731781436988,3.15349,3171.1,3170.5,4.58535125]
[1731781438400,3.15349,3171.1,3170.6,3.0]
[1731781438892,3.15369,3170.9,3170.4,3.15417]
[1731781439097,3.15369,3170.9,3170.5,3.0]
[1731781439651,3.15369,3170.9,3170.3,1.43130125]
[1731781439867,3.15379,3170.8,3170.3,1.43130125]
[1731781440199,3.15369,3170.9,3170.3,1.43130125]
[1731781440407,3.15369,3170.9,3170.5,1.43130125]
[1731781442412,3.1538,3170.8,3170.3,1.43130125]
[1731781442611,3.15389,3170.7,3170.3,1.43130125]
[1731781443168,3.15369,3170.9,3170.3,4.58556125]
[1731781443469,3.1538,3170.8,3170.3,4.43130125]
[1731781443664,3.1533,3171.3,3170.5,1.43130125]
[1731781443922,0.316307,3171.5,3169.9,0.315]
[1731781443923,3.1534,3171.2,3170.9,1.43130125]
[1731781444280,3.15325,3171.4,3170.9,1.43130125]
[1731781444489,3.15325,3171.4,3170.7,4.58516125]
[1731781444670,3.1533,3171.3,3170.7,1.43130125]
[1731781445061,3.1533,3171.3,3170.7,4.43130125]
[1731781445520,3.15336,3171.3,3170.7,3.0]
[1731781445668,3.15336,3171.3,3170.7,4.43130125]
[1731781445865,3.15336,3171.3,3170.7,7.58515125]
[1731781447017,3.15314,3171.5,3170.7,3.06307127]
[1731781447221,3.15336,3171.3,3170.7,3.06307127]
[1731781447577,3.15339,3171.2,3170.7,3.0]
[1731781448107,3.15339,3171.2,3170.7,6.15385]
[1731781448277,3.15339,3171.2,3170.7,3.0]
[1731781450245,3.15344,3171.2,3170.5,6.15403]
[1731781450450,3.15344,3171.2,3170.7,3.0]
[1731781452314,3.15344,3171.2,3170.5,3.0]
[1731781452528,3.15368,3170.9,3170.5,3.0]
[1731781452852,3.15368,3170.9,3170.3,3.0]
[1731781453029,3.15368,3170.9,3170.3,6.15427]
[1731781453940,3.15348,3171.1,3170.5,3.0]
[1731781454093,3.15357,3171.0,3170.5,3.0]
[1731781458938,3.15368,3170.9,3170.5,3.0]
[1731781461599,3.15348,3171.1,3170.5,6.15406]
[1731781462055,3.15348,3171.1,3170.7,3.0]
[1731781466048,3.15332,3171.3,3170.7,3.0]
[1731781466264,3.15464,3170.0,3169.3,3.15526]
[1731781466547,3.15431,3170.3,3169.6,3.02287739]
[1731781466732,3.15425,3170.4,3169.6,6.17781739]
[1731781466944,3.15425,3170.4,3169.7,1.43198196]
[1731781467123,3.15425,3170.4,3169.7,4.58684196]
[1731781467635,3.15425,3170.4,3169.8,3.0]
[1731781468223,3.15407,3170.5,3169.6,0.315]
[1731781468553,3.15479,3169.8,3169.1,3.2185547]
[1731781468723,3.15488,3169.7,3169.1,3.2185547]
[1731781469356,3.15502,3169.6,3169.0,1.43198196]
[1731781469564,3.15502,3169.6,3169.0,4.43198196]
[1731781469711,3.15502,3169.6,3169.2,0.632903]
[1731781472027,3.15519,3169.4,3169.2,0.632903]
[1731781472555,3.15502,3169.6,3169.2,0.632903]
[1731781473861,3.15508,3169.5,3169.2,0.632903]
[1731781475308,3.155,3169.6,3169.2,0.632903]
[1731781478505,3.1548,3169.8,3169.2,0.632903]
[1731781478659,3.15489,3169.7,3169.2,0.632903]
[1731781478864,3.1548,3169.8,3169.2,0.632903]
[1731781479063,3.155,3169.6,3169.2,0.632903]
[1731781480789,3.1548,3169.8,3169.2,0.632903]
[1731781481519,6.30967,3169.8,3169.2,0.632903]
[1731781482225,3.1549,3169.7,3169.2,0.632903]
[1731781482758,3.1548,3169.8,3169.2,0.632903]
[1731781484003,3.1549,3169.7,3169.2,0.632903]
[1731781485196,3.15508,3169.5,3169.2,0.632903]
[1731781486317,3.15507,3169.6,3169.2,0.632903]
[1731781488194,3.15507,3169.6,3169.2,0.582903]
[1731781489313,3.15491,3169.7,3169.2,0.582903]
[1731781489498,3.15514,3169.5,3169.2,0.582903]
[1731781493784,3.470501,3169.6,3169.2,0.582903]
[1731781495435,3.15507,3169.5,3169.2,0.582903]
[1731781500747,8.74,3170.4,3169.4,1.43284767]
[1731781501050,3.15366,3171.0,3170.3,4.58709767]
[1731781501250,3.15366,3171.0,3169.8,0.315]
[1731781501251,3.15366,3171.0,3170.5,1.43284767]
[1731781501896,8.74,3172.0,3170.8,1.43284767]
[1731781502143,3.15328,3171.3,3170.8,1.43284767]
[1731781502347,3.15328,3171.3,3170.6,4.58674767]
[1731781502549,3.15339,3171.2,3170.6,4.58674767]
[1731781503054,3.15351,3171.1,3170.5,3.15406]
[1731781503213,0.63069,3171.0,3170.5,3.15406]
[1731781504542,3.15351,3171.1,3170.5,3.15406]
[1731781504844,0.55,3171.2,3170.6,4.58681767]
[1731781505386,3.15348,3171.1,3170.5,3.15406]
[1731781505546,3.15348,3171.1,3170.5,4.58690767]
[1731781506101,0.55,3171.2,3170.6,3.15388]
[1731781506541,0.55,3171.2,3170.7,1.43284767]
[1731781506761,0.55,3171.2,3170.7,4.58671767]
[1731781507756,0.55,3171.4,3170.7,4.58671767]
[1731781508059,4.018571,3171.4,3170.7,4.58671767]
[1731781508272,0.865311,3171.4,3170.8,3.15374]
[1731781508558,0.55,3171.4,3170.8,3.15374]
[1731781508856,0.55,3171.4,3170.9,3.15367]
[1731781509370,3.15269,3171.9,3171.3,1.43284767]
[1731781509511,3.15242,3172.2,3171.5,4.58590767]
[1731781509876,3.15242,3172.2,3171.6,3.15291]
[1731781511217,0.55,3172.3,3171.7,3.15282]
[1731781511455,0.920219,3172.3,3171.7,3.15282]
[1731781512145,4.072509,3172.3,3171.7,3.15282]
[1731781512520,4.072509,3172.3,3171.5,0.06305494]
[1731781512521,0.62589245,3173.1,3171.8,3.08503237]
[1731781512715,0.01,3173.5,3172.1,3.02197743]
[1731781512716,3.15165,3173.0,3172.1,3.02197743]
[1731781512935,3.15165,3173.0,3172.4,3.15215]
[1731781513265,0.315165,3172.9,3172.3,3.15221]
[1731781513460,3.1514,3173.2,3172.5,3.152]
[1731781513659,6.18275743,3173.9,3172.6,3.1519]
[1731781513660,14.92275743,3173.9,3172.6,3.1519]
[1731781513860,3.15147,3173.2,3172.4,3.15217]
[1731781514040,3.15153,3173.1,3172.4,3.15217]
[1731781514383,0.315137,3173.2,3172.8,3.15178]
[1731781514551,3.15111,3173.5,3172.8,3.15178]
[1731781514899,3.15089,3173.7,3173.0,3.15158]
[1731781515177,3.15039,3174.3,3173.0,3.15158]
[1731781515178,3.15051,3174.1,3173.4,3.15118]